[Event "Late-Titled-Tuesday-Blitz-May-28-2024"]
[Site "Chess.com"]
[Date "2024.05.28"]
[Round "7"]
[White "cassoulet"]
[Black "WPWPWP-2015"]
[Result "1-0"]
[WhiteElo "2717"]
[BlackElo "2514"]
[TimeControl "180+1"]
[EndTime "15:17:49 PDT"]
[Termination "cassoulet won by resignation"]

1. d4 {[%clk 0:02:50.3]} 1... Nf6 {[%clk 0:02:59]} 2. Bg5 {[%clk 0:02:49.5]}
2... Ne4 {[%clk 0:02:56.1]} 3. h4 {[%clk 0:02:48.7]} 3... d5 {[%clk 0:02:53.8]}
4. Nd2 {[%clk 0:02:48.8]} 4... Bf5 {[%clk 0:02:52.7]} 5. Ngf3 {[%clk 0:02:46.7]}
5... Nd7 {[%clk 0:02:51.6]} 6. e3 {[%clk 0:02:46.6]} 6... c6 {[%clk 0:02:49]} 7.
c3 {[%clk 0:02:45.6]} 7... Qb6 {[%clk 0:02:46.5]} 8. Qb3 {[%clk 0:02:45]} 8...
Nxd2 {[%clk 0:02:45]} 9. Nxd2 {[%clk 0:02:44.4]} 9... Qxb3 {[%clk 0:02:42.6]}
10. axb3 {[%clk 0:02:43.7]} 10... f6 {[%clk 0:02:38.1]} 11. Bf4 {[%clk
0:02:43.2]} 11... e5 {[%clk 0:02:38.2]} 12. Bg3 {[%clk 0:02:42.5]} 12... Bd6
{[%clk 0:02:37.4]} 13. Be2 {[%clk 0:02:34.8]} 13... Ke7 {[%clk 0:02:36.5]} 14.
h5 {[%clk 0:02:34.3]} 14... g5 {[%clk 0:02:33.3]} 15. hxg6 {[%clk 0:02:30]}
15... hxg6 {[%clk 0:02:32.9]} 16. Rxh8 {[%clk 0:02:29.6]} 16... Rxh8 {[%clk
0:02:31.3]} 17. Rxa7 {[%clk 0:02:29]} 17... b5 {[%clk 0:02:12.3]} 18. b4 {[%clk
0:02:18.9]} 18... Rh1+ {[%clk 0:02:09.1]} 19. Nf1 {[%clk 0:02:18.5]} 19... Rg1
{[%clk 0:02:03.9]} 20. Ra8 {[%clk 0:01:55.6]} 20... Rxg2 {[%clk 0:01:58.6]} 21.
Rh8 {[%clk 0:01:54.9]} 21... e4 {[%clk 0:01:53.2]} 22. Rh7+ {[%clk 0:01:50.9]}
22... Ke6 {[%clk 0:01:52.7]} 23. Rh1 {[%clk 0:01:44.6]} 23... Nb6 {[%clk
0:01:39.3]} 24. Bxd6 {[%clk 0:01:43.2]} 24... Kxd6 {[%clk 0:01:30.4]} 25. Ng3
{[%clk 0:01:43.5]} 25... Na4 {[%clk 0:00:52.6]} 26. Bf1 {[%clk 0:01:43]} 26...
Rxg3 {[%clk 0:00:49.1]} 27. fxg3 {[%clk 0:01:43.9]} 27... Nxb2 {[%clk
0:00:44.5]} 28. Kd2 {[%clk 0:01:44.2]} 28... Nc4+ {[%clk 0:00:25.9]} 29. Bxc4
{[%clk 0:01:42.8]} 29... dxc4 {[%clk 0:00:26]} 30. Rh6 {[%clk 0:01:40.6]} 30...
Ke6 {[%clk 0:00:22.8]} 31. Rh4 {[%clk 0:01:37]} 31... g5 {[%clk 0:00:20.4]} 32.
Rh8 {[%clk 0:01:37]} 32... Bg4 {[%clk 0:00:19]} 33. Re8+ {[%clk 0:01:35.4]}
33... Kd5 {[%clk 0:00:18.7]} 34. Ke1 {[%clk 0:01:30.1]} 34... Bf3 {[%clk
0:00:17.9]} 35. Kf2 {[%clk 0:01:22.7]} 35... Kd6 {[%clk 0:00:13.9]} 36. Kg1
{[%clk 0:01:15.5]} 36... g4 {[%clk 0:00:13.6]} 37. Kf2 {[%clk 0:01:13.6]} 37...
Kd5 {[%clk 0:00:13.5]} 38. Rh8 {[%clk 0:01:11.7]} 38... Ke6 {[%clk 0:00:13.1]}
39. Rh5 {[%clk 0:01:11.5]} 39... Kd6 {[%clk 0:00:11.8]} 40. Rc5 {[%clk
0:01:11.3]} 40... Bd1 {[%clk 0:00:10.7]} 41. d5 {[%clk 0:01:07.6]} 41... cxd5
{[%clk 0:00:09.9]} 42. Rxb5 {[%clk 0:01:07.9]} 42... Kc6 {[%clk 0:00:10.2]} 43.
Rc5+ {[%clk 0:01:07.6]} 43... Kd6 {[%clk 0:00:10.5]} 44. Rc8 {[%clk 0:01:07.6]}
44... Ba4 {[%clk 0:00:10.3]} 45. Rg8 {[%clk 0:01:02.1]} 45... Bd7 {[%clk
0:00:09.8]} 46. Rf8 {[%clk 0:01:01.7]} 46... Ke7 {[%clk 0:00:09.6]} 47. Ra8
{[%clk 0:01:00.8]} 47... Kd6 {[%clk 0:00:09.5]} 48. Ra6+ {[%clk 0:01:00.6]}
48... Ke7 {[%clk 0:00:08.6]} 49. Ke2 {[%clk 0:01:00.5]} 49... f5 {[%clk
0:00:08.6]} 50. Kd2 {[%clk 0:01:00.5]} 50... Kd8 {[%clk 0:00:08.6]} 51. Rd6
{[%clk 0:00:59.9]} 51... Kc7 {[%clk 0:00:08.7]} 52. Rxd5 {[%clk 0:01:00.3]}
52... Be6 {[%clk 0:00:08.1]} 53. Re5 {[%clk 0:01:00.1]} 53... Kd6 {[%clk
0:00:08.5]} 54. Rc5 {[%clk 0:01:00.3]} 54... Bd7 {[%clk 0:00:08.6]} 55. Rxc4
{[%clk 0:01:00.3]} 55... Be6 {[%clk 0:00:04.8]} 56. Rc5 {[%clk 0:01:00.5]} 56...
Bd7 {[%clk 0:00:04.9]} 57. c4 {[%clk 0:01:01]} 57... Be6 {[%clk 0:00:05.3]} 58.
Kc3 {[%clk 0:01:01.4]} 58... Bd7 {[%clk 0:00:05.5]} 59. Kd4 {[%clk 0:01:01.9]}
59... Be6 {[%clk 0:00:05.6]} 60. Ra5 {[%clk 0:01:01.9]} 60... f4 {[%clk
0:00:05.6]} 61. Ra6+ {[%clk 0:01:00.5]} 61... Ke7 {[%clk 0:00:05.5]} 62. exf4
{[%clk 0:01:00.4]} 62... e3 {[%clk 0:00:05.5]} 63. Ra3 {[%clk 0:00:59.2]} 63...
e2 {[%clk 0:00:04]} 64. Re3 {[%clk 0:00:59.2]} 64... e1=Q {[%clk 0:00:04.2]} 65.
Rxe1 {[%clk 0:00:59.3]} 1-0

[Event "Late-Titled-Tuesday-Blitz-May-28-2024"]
[Site "Chess.com"]
[Date "2024.05.28"]
[Round "7"]
[White "RichardShtivelband"]
[Black "DonJuanEGenaro"]
[Result "1-0"]
[WhiteElo "2387"]
[BlackElo "2046"]
[TimeControl "180+1"]
[EndTime "15:17:49 PDT"]
[Termination "RichardShtivelband won on time"]

1. e4 {[%clk 0:03:00.2]} 1... c5 {[%clk 0:02:57.8]} 2. Nf3 {[%clk 0:03:00.1]}
2... Nc6 {[%clk 0:02:58.2]} 3. d4 {[%clk 0:02:59.9]} 3... cxd4 {[%clk 0:02:58]}
4. Nxd4 {[%clk 0:03:00.2]} 4... Nf6 {[%clk 0:02:58]} 5. Nc3 {[%clk 0:03:00]}
5... d6 {[%clk 0:02:58.2]} 6. f4 {[%clk 0:02:58.4]} 6... Qb6 {[%clk 0:02:46.3]}
7. Nb3 {[%clk 0:02:56.2]} 7... e6 {[%clk 0:02:39.3]} 8. Bd3 {[%clk 0:02:53.1]}
8... d5 {[%clk 0:02:36.5]} 9. e5 {[%clk 0:02:47.5]} 9... Ne4 {[%clk 0:02:19.5]}
10. Bxe4 {[%clk 0:02:36.7]} 10... dxe4 {[%clk 0:02:17.5]} 11. Nxe4 {[%clk
0:02:36.9]} 11... Qb4+ {[%clk 0:02:13.4]} 12. Nc3 {[%clk 0:02:36.1]} 12... Be7
{[%clk 0:02:01.5]} 13. Qe2 {[%clk 0:02:33.7]} 13... O-O {[%clk 0:01:58.5]} 14.
a3 {[%clk 0:02:32.3]} 14... Qb6 {[%clk 0:01:30.4]} 15. Be3 {[%clk 0:02:30.9]}
15... Qc7 {[%clk 0:01:29.1]} 16. O-O {[%clk 0:02:29.9]} 16... b6 {[%clk
0:01:23.7]} 17. Rad1 {[%clk 0:02:21.7]} 17... a6 {[%clk 0:01:14.7]} 18. Ne4
{[%clk 0:02:15.7]} 18... Rd8 {[%clk 0:01:05.5]} 19. Rxd8+ {[%clk 0:02:14.3]}
19... Nxd8 {[%clk 0:01:05]} 20. Rd1 {[%clk 0:02:13.5]} 20... Nb7 {[%clk
0:01:02.3]} 21. Qd3 {[%clk 0:01:54]} 21... Nc5 {[%clk 0:00:55.6]} 22. Nbxc5
{[%clk 0:01:52.6]} 22... bxc5 {[%clk 0:00:55.4]} 23. Qc4 {[%clk 0:01:31]} 23...
Bb7 {[%clk 0:00:52.8]} 24. Nd6 {[%clk 0:01:02.6]} 24... Bd5 {[%clk 0:00:48.5]}
25. Qxc5 {[%clk 0:00:59.7]} 25... Qd7 {[%clk 0:00:36]} 26. c4 {[%clk 0:00:57.2]}
26... Bc6 {[%clk 0:00:31.6]} 27. b4 {[%clk 0:00:51]} 27... Rb8 {[%clk
0:00:27.2]} 28. Rd2 {[%clk 0:00:50]} 28... Qc7 {[%clk 0:00:20.1]} 29. Qa7 {[%clk
0:00:46.7]} 29... Qxa7 {[%clk 0:00:18.2]} 30. Bxa7 {[%clk 0:00:46.2]} 30... Ra8
{[%clk 0:00:17.3]} 31. Bc5 {[%clk 0:00:44.6]} 31... f6 {[%clk 0:00:11.3]} 32.
exf6 {[%clk 0:00:33.7]} 32... gxf6 {[%clk 0:00:10.8]} 33. Kf2 {[%clk 0:00:32.6]}
33... Kg7 {[%clk 0:00:09.5]} 34. Nf5+ {[%clk 0:00:29.7]} 34... exf5 {[%clk
0:00:07.1]} 35. Bxe7 {[%clk 0:00:29.9]} 35... Re8 {[%clk 0:00:05.6]} 36. Bd6
{[%clk 0:00:24.2]} 36... Re4 {[%clk 0:00:04.5]} 37. c5 {[%clk 0:00:23.1]} 37...
Bb5 {[%clk 0:00:04.4]} 38. g3 {[%clk 0:00:17.4]} 38... Rc4 {[%clk 0:00:01.6]}
39. Bc7 {[%clk 0:00:12.9]} 39... Rc3 {[%clk 0:00:01.2]} 40. Ba5 {[%clk
0:00:07.2]} 1-0

[Event "Late-Titled-Tuesday-Blitz-May-28-2024"]
[Site "Chess.com"]
[Date "2024.05.28"]
[Round "7"]
[White "OparinGrigoriy"]
[Black "kingofthenil"]
[Result "0-1"]
[WhiteElo "3052"]
[BlackElo "2947"]
[TimeControl "180+1"]
[EndTime "15:17:53 PDT"]
[Termination "kingofthenil won by resignation"]

1. Nf3 {[%clk 0:03:00.9]} 1... d5 {[%clk 0:02:59.3]} 2. g3 {[%clk 0:03:01.1]}
2... g6 {[%clk 0:02:59]} 3. Bg2 {[%clk 0:03:01.5]} 3... Bg7 {[%clk 0:02:59.6]}
4. d4 {[%clk 0:03:02.3]} 4... Nf6 {[%clk 0:02:58.3]} 5. O-O {[%clk 0:03:02.7]}
5... O-O {[%clk 0:02:58.9]} 6. c4 {[%clk 0:03:03.4]} 6... c6 {[%clk 0:02:59]} 7.
Qa4 {[%clk 0:03:04.1]} 7... e6 {[%clk 0:02:56.6]} 8. Qc2 {[%clk 0:02:58.1]} 8...
Qe7 {[%clk 0:02:56.5]} 9. b3 {[%clk 0:02:58.3]} 9... Rd8 {[%clk 0:02:56.5]} 10.
Rd1 {[%clk 0:02:57.9]} 10... Ne4 {[%clk 0:02:56.2]} 11. Bb2 {[%clk 0:02:55.2]}
11... Nd7 {[%clk 0:02:52.5]} 12. Nbd2 {[%clk 0:02:55.5]} 12... f5 {[%clk
0:02:52.6]} 13. Ne1 {[%clk 0:02:55.1]} 13... b6 {[%clk 0:02:42.2]} 14. Ndf3
{[%clk 0:02:55.5]} 14... Bb7 {[%clk 0:02:38.2]} 15. Nd3 {[%clk 0:02:55.7]} 15...
Rac8 {[%clk 0:02:38.1]} 16. Rac1 {[%clk 0:02:56.2]} 16... c5 {[%clk 0:02:34.4]}
17. dxc5 {[%clk 0:02:53.6]} 17... Ndxc5 {[%clk 0:02:34.7]} 18. Bxg7 {[%clk
0:02:52.7]} 18... Qxg7 {[%clk 0:02:34.9]} 19. Nxc5 {[%clk 0:02:48.6]} 19... bxc5
{[%clk 0:02:32.9]} 20. cxd5 {[%clk 0:02:44.2]} 20... exd5 {[%clk 0:02:30.8]} 21.
e3 {[%clk 0:02:44]} 21... Qf6 {[%clk 0:02:27.3]} 22. Ne1 {[%clk 0:02:38]} 22...
d4 {[%clk 0:02:23.5]} 23. exd4 {[%clk 0:02:25.4]} 23... cxd4 {[%clk 0:02:23.1]}
24. Qd3 {[%clk 0:02:25.6]} 24... Ba6 {[%clk 0:02:18.5]} 25. Qf3 {[%clk
0:02:22.1]} 25... Nc3 {[%clk 0:02:12.9]} 26. Nd3 {[%clk 0:02:09.5]} 26... Nxd1
{[%clk 0:02:09.2]} 27. Rxd1 {[%clk 0:02:10.4]} 27... Rc3 {[%clk 0:02:06.7]} 28.
Bf1 {[%clk 0:02:09.9]} 28... Kg7 {[%clk 0:01:31.6]} 29. Qf4 {[%clk 0:02:06]}
29... Bb7 {[%clk 0:01:29.2]} 30. Ne5 {[%clk 0:01:43.9]} 30... g5 {[%clk
0:01:25.1]} 31. Qd2 {[%clk 0:01:37.4]} 31... h6 {[%clk 0:00:58.4]} 32. Re1
{[%clk 0:01:37.8]} 32... Rc5 {[%clk 0:00:49.1]} 33. Qb4 {[%clk 0:01:24.6]} 33...
Qb6 {[%clk 0:00:41.3]} 34. Qd2 {[%clk 0:01:24.7]} 34... Rxe5 {[%clk 0:00:35.5]}
35. Rxe5 {[%clk 0:01:25.6]} 35... Qc6 {[%clk 0:00:36.2]} 36. f3 {[%clk
0:00:59.7]} 36... Qxf3 {[%clk 0:00:36.2]} 37. Bg2 {[%clk 0:01:00.4]} 37... Qxg2+
{[%clk 0:00:34.7]} 38. Qxg2 {[%clk 0:01:01.3]} 38... Bxg2 {[%clk 0:00:35]} 39.
Kxg2 {[%clk 0:01:02.2]} 39... d3 {[%clk 0:00:35.8]} 40. Re1 {[%clk 0:01:02.7]}
40... Kf6 {[%clk 0:00:20.6]} 41. Kf3 {[%clk 0:01:00.5]} 41... d2 {[%clk
0:00:12.7]} 42. Rd1 {[%clk 0:01:00.7]} 42... Ke5 {[%clk 0:00:11.1]} 43. Ke2
{[%clk 0:00:51.9]} 43... Ke4 {[%clk 0:00:05.7]} 44. b4 {[%clk 0:00:25]} 44... f4
{[%clk 0:00:05.8]} 45. Rxd2 {[%clk 0:00:18.9]} 45... Rxd2+ {[%clk 0:00:05.7]}
46. Kxd2 {[%clk 0:00:19.8]} 46... Kf3 {[%clk 0:00:06.5]} 47. b5 {[%clk
0:00:18.8]} 47... Kg2 {[%clk 0:00:06.9]} 48. a4 {[%clk 0:00:17.1]} 48... f3
{[%clk 0:00:07.3]} 49. a5 {[%clk 0:00:16.8]} 49... f2 {[%clk 0:00:07.5]} 50. b6
{[%clk 0:00:17.7]} 50... axb6 {[%clk 0:00:07.8]} 51. a6 {[%clk 0:00:18.3]} 51...
f1=Q {[%clk 0:00:08]} 52. a7 {[%clk 0:00:19.2]} 52... Qa6 {[%clk 0:00:08.5]} 0-1

[Event "Late-Titled-Tuesday-Blitz-May-28-2024"]
[Site "Chess.com"]
[Date "2024.05.28"]
[Round "7"]
[White "Aygehovit1992"]
[Black "karinachess1"]
[Result "0-1"]
[WhiteElo "2807"]
[BlackElo "2640"]
[TimeControl "180+1"]
[EndTime "15:17:54 PDT"]
[Termination "karinachess1 won on time"]

1. e4 {[%clk 0:03:00.9]} 1... e5 {[%clk 0:03:00.3]} 2. Nf3 {[%clk 0:03:01.4]}
2... Nc6 {[%clk 0:03:00.9]} 3. Bb5 {[%clk 0:03:01.9]} 3... Nge7 {[%clk
0:03:01.6]} 4. c3 {[%clk 0:02:58.5]} 4... a6 {[%clk 0:02:57]} 5. Ba4 {[%clk
0:02:58.2]} 5... b5 {[%clk 0:02:54.5]} 6. Bc2 {[%clk 0:02:56.2]} 6... d5 {[%clk
0:02:54.5]} 7. O-O {[%clk 0:02:48.2]} 7... Bg4 {[%clk 0:02:50.1]} 8. Re1 {[%clk
0:02:45.6]} 8... d4 {[%clk 0:02:47.3]} 9. h3 {[%clk 0:02:44.1]} 9... Bh5 {[%clk
0:02:42.3]} 10. a4 {[%clk 0:02:38.5]} 10... Rb8 {[%clk 0:02:24.6]} 11. axb5
{[%clk 0:02:38.3]} 11... axb5 {[%clk 0:02:25.5]} 12. g4 {[%clk 0:02:36.4]} 12...
Bg6 {[%clk 0:02:25.7]} 13. cxd4 {[%clk 0:02:36.8]} 13... exd4 {[%clk 0:02:17.8]}
14. d3 {[%clk 0:02:34.8]} 14... Nc8 {[%clk 0:02:14.5]} 15. Nbd2 {[%clk
0:02:24.1]} 15... Be7 {[%clk 0:02:03.5]} 16. Nf1 {[%clk 0:02:22.6]} 16... h5
{[%clk 0:02:02.3]} 17. Ng3 {[%clk 0:02:19.2]} 17... hxg4 {[%clk 0:01:54]} 18.
hxg4 {[%clk 0:02:20.1]} 18... Qd7 {[%clk 0:01:54.5]} 19. Nf5 {[%clk 0:02:20.1]}
19... Kf8 {[%clk 0:01:47]} 20. Bb3 {[%clk 0:02:10]} 20... Bxf5 {[%clk
0:01:35.8]} 21. gxf5 {[%clk 0:01:26.9]} 21... g6 {[%clk 0:01:34.8]} 22. Bf4
{[%clk 0:01:03.4]} 22... Nd6 {[%clk 0:01:01.5]} 23. e5 {[%clk 0:00:59.5]} 23...
Qxf5 {[%clk 0:00:38.6]} 24. exd6 {[%clk 0:00:59.4]} 24... Bxd6 {[%clk
0:00:32.3]} 25. Bxd6+ {[%clk 0:00:57.1]} 25... cxd6 {[%clk 0:00:33.2]} 26. Re4
{[%clk 0:00:33.6]} 26... Qh3 {[%clk 0:00:30.3]} 27. Rh4 {[%clk 0:00:27]} 27...
Rxh4 {[%clk 0:00:29.5]} 28. Nxh4 {[%clk 0:00:27.9]} 28... Qxh4 {[%clk
0:00:30.1]} 29. Qf3 {[%clk 0:00:24.8]} 29... Ne5 {[%clk 0:00:30.3]} 30. Qd5
{[%clk 0:00:15]} 30... Qf6 {[%clk 0:00:24.5]} 31. Ra6 {[%clk 0:00:06.4]} 31...
Rd8 {[%clk 0:00:24.6]} 32. Kf1 {[%clk 0:00:05.2]} 32... Nxd3 {[%clk 0:00:21.7]}
33. f3 {[%clk 0:00:03.1]} 33... Nc5 {[%clk 0:00:19.8]} 34. Ra7 {[%clk
0:00:02.9]} 34... Nxb3 {[%clk 0:00:17.5]} 35. Qxb3 {[%clk 0:00:03.8]} 35... Kg7
{[%clk 0:00:18]} 36. Qd5 {[%clk 0:00:03]} 36... Rc8 {[%clk 0:00:16]} 37. Rb7
{[%clk 0:00:02.2]} 37... Rc1+ {[%clk 0:00:15.4]} 38. Ke2 {[%clk 0:00:02.6]}
38... Rc5 {[%clk 0:00:14.8]} 39. Qb3 {[%clk 0:00:00.9]} 39... Re5+ {[%clk
0:00:13.4]} 40. Kf2 {[%clk 0:00:01.5]} 40... Re3 {[%clk 0:00:13.7]} 41. Qd5
{[%clk 0:00:01.1]} 41... Qh4+ {[%clk 0:00:12]} 42. Kg2 {[%clk 0:00:01]} 42...
Re2+ {[%clk 0:00:11.7]} 43. Kg1 {[%clk 0:00:01]} 43... Qh2+ {[%clk 0:00:11.6]}
0-1

[Event "Late-Titled-Tuesday-Blitz-May-28-2024"]
[Site "Chess.com"]
[Date "2024.05.28"]
[Round "7"]
[White "nihalsarin"]
[Black "Konavets"]
[Result "0-1"]
[WhiteElo "3251"]
[BlackElo "3110"]
[TimeControl "180+1"]
[EndTime "15:17:55 PDT"]
[Termination "Konavets won by resignation"]

1. d4 {[%clk 0:03:00.9]} 1... Nf6 {[%clk 0:03:00.1]} 2. c4 {[%clk 0:03:01.2]}
2... e6 {[%clk 0:03:00.4]} 3. Nf3 {[%clk 0:03:01.6]} 3... d5 {[%clk 0:03:00.7]}
4. Nc3 {[%clk 0:03:02]} 4... Bb4 {[%clk 0:03:01.4]} 5. Bg5 {[%clk 0:03:01.8]}
5... h6 {[%clk 0:03:01.6]} 6. Bxf6 {[%clk 0:03:00.3]} 6... Qxf6 {[%clk
0:03:02.5]} 7. e3 {[%clk 0:03:00.6]} 7... O-O {[%clk 0:03:02.6]} 8. Rc1 {[%clk
0:03:01.3]} 8... dxc4 {[%clk 0:03:01.6]} 9. Bxc4 {[%clk 0:03:02.2]} 9... c5
{[%clk 0:03:02.3]} 10. dxc5 {[%clk 0:03:02.8]} 10... Nd7 {[%clk 0:03:00.6]} 11.
O-O {[%clk 0:02:58.2]} 11... Nxc5 {[%clk 0:03:00.3]} 12. Nb5 {[%clk 0:02:58.6]}
12... Rd8 {[%clk 0:02:51.6]} 13. Qe2 {[%clk 0:02:55.8]} 13... a6 {[%clk
0:02:47]} 14. Nbd4 {[%clk 0:02:55.1]} 14... Ba5 {[%clk 0:02:41.9]} 15. a3 {[%clk
0:02:50.1]} 15... Bb6 {[%clk 0:02:35.9]} 16. b4 {[%clk 0:02:25.4]} 16... Ne4
{[%clk 0:02:34.9]} 17. h3 {[%clk 0:02:13.8]} 17... Bd7 {[%clk 0:02:28.3]} 18.
Bd3 {[%clk 0:01:55.1]} 18... Nd6 {[%clk 0:02:28.6]} 19. Nb3 {[%clk 0:01:55.4]}
19... Rac8 {[%clk 0:02:20.5]} 20. Nc5 {[%clk 0:01:55.4]} 20... Bxc5 {[%clk
0:02:00.6]} 21. bxc5 {[%clk 0:01:56.3]} 21... Nb5 {[%clk 0:02:01]} 22. Be4
{[%clk 0:01:19.7]} 22... Nc3 {[%clk 0:00:51.4]} 23. Qc2 {[%clk 0:01:19.2]} 23...
Rxc5 {[%clk 0:00:45.9]} 24. Nd4 {[%clk 0:00:42.1]} 24... Ba4 {[%clk 0:00:36.3]}
25. Bh7+ {[%clk 0:00:42.1]} 25... Kh8 {[%clk 0:00:32.3]} 26. Qb2 {[%clk
0:00:43]} 26... Rxd4 {[%clk 0:00:17.6]} 27. exd4 {[%clk 0:00:38.2]} 27... Qxd4
{[%clk 0:00:18.5]} 28. Bb1 {[%clk 0:00:18.8]} 28... Bb5 {[%clk 0:00:18.9]} 29.
Rcd1 {[%clk 0:00:19.5]} 29... Qf6 {[%clk 0:00:13.3]} 30. Rd6 {[%clk 0:00:10.4]}
30... g6 {[%clk 0:00:08.9]} 31. Re1 {[%clk 0:00:09.5]} 31... Kg7 {[%clk
0:00:09]} 32. Qd2 {[%clk 0:00:08.3]} 32... Bc6 {[%clk 0:00:07]} 33. Bd3 {[%clk
0:00:07.5]} 33... Rg5 {[%clk 0:00:06.5]} 34. Bf1 {[%clk 0:00:07.7]} 34... Ne4
{[%clk 0:00:06.8]} 35. Rxe4 {[%clk 0:00:05.6]} 35... Bxe4 {[%clk 0:00:07.7]} 36.
Rd7 {[%clk 0:00:04.6]} 36... Bc6 {[%clk 0:00:07.4]} 37. Rc7 {[%clk 0:00:05.3]}
37... Rd5 {[%clk 0:00:07.6]} 38. Qb4 {[%clk 0:00:04.8]} 38... Qd8 {[%clk
0:00:07.4]} 39. Qf4 {[%clk 0:00:04.4]} 39... Rf5 {[%clk 0:00:06.9]} 40. Qg3
{[%clk 0:00:04.9]} 40... e5 {[%clk 0:00:07.3]} 41. Bd3 {[%clk 0:00:02.7]} 41...
Rg5 {[%clk 0:00:06.6]} 0-1

[Event "Late-Titled-Tuesday-Blitz-May-28-2024"]
[Site "Chess.com"]
[Date "2024.05.28"]
[Round "7"]
[White "carloseduar100"]
[Black "maracayo"]
[Result "1-0"]
[WhiteElo "2306"]
[BlackElo "2410"]
[TimeControl "180+1"]
[EndTime "15:18:01 PDT"]
[Termination "carloseduar100 won by resignation"]

1. g3 {[%clk 0:02:59.6]} 1... d6 {[%clk 0:03:00.9]} 2. Bg2 {[%clk 0:03:00.5]}
2... e5 {[%clk 0:03:00.6]} 3. Nf3 {[%clk 0:03:01.4]} 3... Nf6 {[%clk 0:03:00.8]}
4. O-O {[%clk 0:03:02.3]} 4... Be7 {[%clk 0:03:01.1]} 5. d4 {[%clk 0:03:03.2]}
5... Nbd7 {[%clk 0:03:01.2]} 6. dxe5 {[%clk 0:03:03.4]} 6... dxe5 {[%clk
0:03:00.2]} 7. c3 {[%clk 0:03:02.1]} 7... O-O {[%clk 0:02:58.7]} 8. b3 {[%clk
0:03:00.7]} 8... h6 {[%clk 0:02:57.4]} 9. Bb2 {[%clk 0:03:00.4]} 9... Re8 {[%clk
0:02:55.9]} 10. Nbd2 {[%clk 0:03:00.5]} 10... e4 {[%clk 0:02:55.2]} 11. Nd4
{[%clk 0:03:00.3]} 11... e3 {[%clk 0:02:55]} 12. fxe3 {[%clk 0:03:01.2]} 12...
Ng4 {[%clk 0:02:54.2]} 13. Nc4 {[%clk 0:02:50.3]} 13... Bg5 {[%clk 0:02:52.6]}
14. e4 {[%clk 0:02:40.7]} 14... Nde5 {[%clk 0:02:38.8]} 15. Nxe5 {[%clk
0:02:39.1]} 15... Rxe5 {[%clk 0:02:37.3]} 16. Qd3 {[%clk 0:02:30.8]} 16... Be3+
{[%clk 0:02:30.1]} 17. Kh1 {[%clk 0:02:30.7]} 17... Rh5 {[%clk 0:01:53.5]} 18.
h3 {[%clk 0:02:23.2]} 18... Nf2+ {[%clk 0:01:50.4]} 19. Rxf2 {[%clk 0:02:21.7]}
19... Bxf2 {[%clk 0:01:51.3]} 20. Kh2 {[%clk 0:02:21.9]} 20... c5 {[%clk
0:01:26.4]} 21. Nf3 {[%clk 0:02:22]} 21... Qxd3 {[%clk 0:01:05.9]} 22. exd3
{[%clk 0:02:20.6]} 22... c4 {[%clk 0:00:49.9]} 23. bxc4 {[%clk 0:02:18.4]} 23...
Ra5 {[%clk 0:00:38.9]} 24. d4 {[%clk 0:02:00.5]} 24... Be3 {[%clk 0:00:36.6]}
25. a3 {[%clk 0:01:52.2]} 25... Be6 {[%clk 0:00:34.4]} 26. Re1 {[%clk
0:01:49.1]} 26... Bg5 {[%clk 0:00:32.5]} 27. Nxg5 {[%clk 0:01:48.3]} 27... hxg5
{[%clk 0:00:32.2]} 28. d5 {[%clk 0:01:48.2]} 28... Bd7 {[%clk 0:00:31.8]} 29. e5
{[%clk 0:01:44.8]} 29... Rc8 {[%clk 0:00:30.7]} 30. Bf1 {[%clk 0:01:38]} 30...
b5 {[%clk 0:00:25.5]} 31. Re4 {[%clk 0:01:11.4]} 31... bxc4 {[%clk 0:00:23.8]}
32. Bxc4 {[%clk 0:01:08.8]} 32... Ra4 {[%clk 0:00:23.5]} 33. Bd3 {[%clk
0:01:06.8]} 33... Rxe4 {[%clk 0:00:22.1]} 34. Bxe4 {[%clk 0:01:07]} 34... Rc4
{[%clk 0:00:21]} 35. Bd3 {[%clk 0:01:03.8]} 35... Rc5 {[%clk 0:00:20.7]} 36. c4
{[%clk 0:01:01.5]} 36... Ba4 {[%clk 0:00:19.3]} 37. Bd4 {[%clk 0:01:01.1]} 37...
Rc7 {[%clk 0:00:19.4]} 38. c5 {[%clk 0:01:00.3]} 38... Bb3 {[%clk 0:00:17.5]}
39. Be4 {[%clk 0:00:56.7]} 39... Bxd5 {[%clk 0:00:16]} 40. Bxd5 {[%clk 0:00:56]}
40... Rd7 {[%clk 0:00:16.3]} 41. c6 {[%clk 0:00:53.8]} 41... Rxd5 {[%clk
0:00:14.8]} 42. c7 {[%clk 0:00:53.2]} 42... Rxd4 {[%clk 0:00:14.6]} 43. c8=Q+
{[%clk 0:00:52.4]} 43... Kh7 {[%clk 0:00:15.5]} 44. Qc2+ {[%clk 0:00:50.3]}
44... g6 {[%clk 0:00:15.9]} 45. Qc5 {[%clk 0:00:42.4]} 45... Ra4 {[%clk
0:00:14.4]} 46. g4 {[%clk 0:00:40.1]} 46... Kg7 {[%clk 0:00:12.4]} 47. Qd6
{[%clk 0:00:38.7]} 47... Ra5 {[%clk 0:00:10.5]} 48. Qf6+ {[%clk 0:00:34.4]}
48... Kg8 {[%clk 0:00:09.5]} 49. Qd8+ {[%clk 0:00:33.7]} 1-0